fUSD/lending_fUSD_20250608
["ID","MTS","AMOUNT","RATE_DAILY","PERIOD"]
[364984547,1749382238691,-488.39960099,0.00019178,2]
[364984549,1749382238701,-555.97,0.00019178,2]
[364984551,1749382238710,-480.0,0.00019178,2]
[364984553,1749382238719,-480.0,0.00019178,2]
[364984555,1749382238728,-480.0,0.00019178,2]
[364984557,1749382238737,-261.56040594,0.00019178,2]
[364984559,1749382238746,-1000.0,0.00019178,2]
[364984561,1749382238756,-496.2,0.00019178,2]
[364984563,1749382238766,-480.0,0.00019178,2]
[364984564,1749382238775,-373.47726702,0.00019178,2]
[364984566,1749382238785,-150.0,0.00019178,2]
[364984568,1749382238794,-150.0,0.00019178,2]
[364984570,1749382238804,-150.0,0.00019178,2]
[364984572,1749382238813,-150.0,0.00019178,2]
[364984574,1749382238822,-150.0,0.00019178,2]
[364984576,1749382238831,-150.0,0.00019178,2]
[364984578,1749382238840,-150.0,0.00019178,2]
[364984580,1749382238850,-150.0,0.00019178,2]
[364984582,1749382238858,-150.0,0.00019178,2]
[364984584,1749382238868,-150.0,0.00019178,2]
[364984586,1749382238877,-150.0,0.00019178,2]
[364984588,1749382238887,-150.0,0.00019178,2]
[364984590,1749382238896,-461.05035753,0.00019178,2]
[364984592,1749382238904,-500.0,0.00019178,2]
[364984594,1749382238912,-150.0,0.00019178,2]
[364984596,1749382238922,-536.07,0.00019178,2]
[364984597,1749382238931,-150.0,0.00019178,2]
[364984599,1749382238940,-150.0,0.00019178,2]
[364984601,1749382238950,-150.0,0.00019178,2]
[364984603,1749382238959,-480.0,0.00019178,2]
[364984605,1749382238968,-300.09765531,0.00019178,2]
[364984607,1749382238977,-480.0,0.00019178,2]
[364984609,1749382238987,-480.0,0.00019178,2]
[364984611,1749382238996,-562.26,0.00019178,2]
[364984613,1749382239007,-480.0,0.00019178,2]
[364984615,1749382239017,-236.05770325,0.00019178,2]
[364984617,1749382239027,-480.0,0.00019178,2]
[364984619,1749382239036,-685.79,0.00019178,2]
[364984621,1749382239045,-480.0,0.00019178,2]
[364984623,1749382239054,-480.0,0.00019178,2]
[364984625,1749382239064,-517.31,0.00019178,2]
[364984627,1749382239073,-151.0,0.00019178,2]
[364984629,1749382239082,-151.0,0.00019178,2]
[364984631,1749382239091,-151.0,0.00019178,2]
[364984633,1749382239101,-151.0,0.00019178,2]
[364984635,1749382239111,-151.0,0.00019178,2]
[364984637,1749382239121,-299.332808,0.00019178,2]
[364984639,1749382239130,-151.0,0.00019178,2]
[364984641,1749382239138,-151.0,0.00019178,2]
[364984643,1749382239148,-151.0,0.00019178,2]
[364984645,1749382239157,-151.0,0.00019178,2]
[364984647,1749382239166,-288.555252,0.00019178,2]
[364984649,1749382239175,-223.225748,0.00019178,2]
[364984651,1749382239185,-480.0,0.00019178,2]
[364984652,1749382239195,-151.0,0.00019178,2]
[364984654,1749382239204,-151.0,0.00019178,2]
[364984655,1749382239213,-151.0,0.00019178,2]
[364984657,1749382239222,-151.0,0.00019178,2]
[364984659,1749382239231,-151.0,0.00019178,2]
[364984661,1749382239240,-151.0,0.00019178,2]
[364984663,1749382239249,-151.0,0.00019178,2]
[364984665,1749382239258,-151.0,0.00019178,2]
[364984667,1749382239268,-151.0,0.00019178,2]
[364984668,1749382239277,-151.0,0.00019178,2]
[364984670,1749382239290,-151.0,0.00019178,2]
[364984672,1749382239299,-183.242762,0.00019178,2]
[364984674,1749382239308,-480.0,0.00019178,2]
[364984676,1749382239317,-619.76,0.00019178,2]
[364984678,1749382239327,-151.0,0.00019178,2]
[364984680,1749382239336,-151.0,0.00019178,2]
[364984682,1749382239345,-480.0,0.00019178,2]
[364984684,1749382239354,-151.0,0.00019178,2]
[364984685,1749382239364,-151.0,0.00019178,2]
[364984687,1749382239373,-151.0,0.00019178,2]
[364984689,1749382239383,-181.317118,0.00019178,2]
[364984691,1749382239392,-480.0,0.00019178,2]
[364984693,1749382239400,-1114.68,0.00019178,2]
[364984695,1749382239410,-480.0,0.00019178,2]
[364984697,1749382239419,-480.0,0.00019178,2]
[364984699,1749382239428,-480.0,0.00019178,2]
[364984701,1749382239437,-1436.96,0.00019178,2]
[364984703,1749382239446,-480.0,0.00019178,2]
[364984704,1749382239455,-480.0,0.00019178,2]
[364984706,1749382239463,-151.0,0.00019178,2]
[364984708,1749382239472,-480.0,0.00019178,2]
[364984710,1749382239481,-170.232144,0.00019178,2]
[364984712,1749382239490,-480.0,0.00019178,2]
[364984714,1749382239499,-480.0,0.00019178,2]
[364984716,1749382239508,-1032.09492683,0.00019178,2]
[364984718,1749382239523,-816.68230444,0.00019178,2]
[364984721,1749382239534,-119.44276873,0.00019178,2]
[364984722,1749382239544,-136.87079108,0.00019178,2]
[364984725,1749382239563,-343.12920892,0.00019178,2]
[364984727,1749382239572,-426.76091352,0.00019178,2]
[364984729,1749382239583,-1959.5,0.00019178,2]
[364984732,1749382239594,-285.53908648,0.00019178,2]
[364984734,1749382239603,-802.62,0.00019178,2]
[364984735,1749382239613,-151.0,0.00019178,2]
[364984737,1749382239622,-223.235422,0.00019178,2]
[364984739,1749382239631,-480.0,0.00019178,2]
[364984741,1749382239640,-480.0,0.00019178,2]
[364984743,1749382239649,-1487.64,0.00019178,2]
[364984745,1749382239658,-480.0,0.00019178,2]
[364984747,1749382239667,-6.73686686,0.00019178,2]
[364984749,1749382239679,-473.26313314,0.00019178,2]
[364984751,1749382239688,-645.68,0.00019178,2]
[364984753,1749382239697,-697.19,0.00019178,2]
[364984755,1749382239706,-480.0,0.00019178,2]
[364984757,1749382239715,-480.0,0.00019178,2]
[364984759,1749382239724,-480.0,0.00019178,2]
[364984761,1749382239733,-480.0,0.00019178,2]
[364984763,1749382239742,-339.99055724,0.00019178,2]
[364984765,1749382239757,-140.00944276,0.00019178,2]
[364984767,1749382239766,-480.0,0.00019178,2]
[364984769,1749382239775,-2571.65,0.00019178,2]
[364984771,1749382239784,-480.0,0.00019178,2]
[364984774,1749382239794,-480.0,0.00019178,2]
[364984777,1749382239804,-17231.20739684,0.00019178,2]
[364984779,1749382239815,-983.76745006,0.00019178,2]
[364984808,1749382243018,-205.0,0.00018879,2]
[364984809,1749382243028,-7327.75286109,0.00019178,2]
[364984810,1749382243039,-3756.77501488,0.00019178,2]
[364984811,1749382243125,-1723.17271457,0.00019178,2]
[364984812,1749382243287,-14203.96456256,0.00019178,2]
[364984813,1749382243296,-480.0,0.00019178,2]
[364984814,1749382243305,-813.02,0.00019178,2]
[364984816,1749382243315,-505.36,0.00019178,2]
[364984818,1749382243324,-337.29005049,0.00019178,2]
[364984819,1749382243333,-480.0,0.00019178,2]
[364984821,1749382243342,-480.0,0.00019178,2]
[364984824,1749382243351,-550.85,0.00019178,2]
[364984826,1749382243361,-617.64170666,0.00019178,2]
[364984829,1749382243371,-480.0,0.00019178,2]
[364984831,1749382243380,-480.0,0.00019178,2]
[364984833,1749382243390,-612.26,0.00019178,2]
[364984835,1749382243399,-480.0,0.00019178,2]
[364984838,1749382243408,-480.0,0.00019178,2]
[364984840,1749382243417,-480.0,0.00019178,2]
[364984843,1749382243427,-480.0,0.00019178,2]
[364984846,1749382243436,-480.0,0.00019178,2]
[364984849,1749382243445,-556.42,0.00019178,2]
[364984852,1749382243454,-1249.66,0.00019178,2]
[364984855,1749382243462,-480.0,0.00019178,2]
[364984858,1749382243471,-480.0,0.00019178,2]
[364984861,1749382243480,-521.55949663,0.00019178,2]
[364984864,1749382243489,-480.0,0.00019178,2]
[364984867,1749382243498,-480.0,0.00019178,2]
[364984870,1749382243507,-480.0,0.00019178,2]
[364984873,1749382243517,-480.0,0.00019178,2]
[364984875,1749382243526,-480.0,0.00019178,2]
[364984876,1749382243535,-830.82,0.00019178,2]
[364984877,1749382243545,-480.0,0.00019178,2]
[364984878,1749382243554,-1698.59,0.00019178,2]
[364984879,1749382243563,-3710.05,0.00019178,2]
[364984880,1749382243573,-480.0,0.00019178,2]
[364984881,1749382243582,-480.0,0.00019178,2]
[364984882,1749382243591,-151.0,0.00019178,2]
[364984883,1749382243600,-244.79561,0.00019178,2]
[364984884,1749382243609,-480.0,0.00019178,2]
[364984885,1749382243619,-480.0,0.00019178,2]
[364984886,1749382243630,-460.0,0.00019178,2]
[364984887,1749382243639,-514.31,0.00019178,2]
[364984888,1749382243649,-480.0,0.00019178,2]
[364984889,1749382243660,-480.0,0.00019178,2]
[364984890,1749382243670,-480.0,0.00019178,2]
[364984891,1749382243680,-295.59867549,0.00019178,2]
[364984892,1749382243689,-480.0,0.00019178,2]
[364984893,1749382243699,-1132.91,0.00019178,2]
[364984894,1749382243708,-480.0,0.00019178,2]
[364984895,1749382243717,-480.0,0.00019178,2]
[364984896,1749382243726,-380.369242,0.00019178,2]
[364984897,1749382243736,-380.369242,0.00019178,2]
[364984898,1749382243745,-380.369242,0.00019178,2]
[364984899,1749382243753,-380.369242,0.00019178,2]
[364984900,1749382243763,-380.369242,0.00019178,2]
[364984901,1749382243772,-380.369242,0.00019178,2]
[364984902,1749382243781,-480.0,0.00019178,2]
[364984903,1749382243790,-380.369242,0.00019178,2]
[364984904,1749382243799,-3483.86,0.00019178,2]
[364984905,1749382243808,-380.369242,0.00019178,2]
[364984906,1749382243818,-480.0,0.00019178,2]
[364984907,1749382243826,-380.369242,0.00019178,2]
[364984908,1749382243835,-380.369242,0.00019178,2]
[364984909,1749382243844,-380.369242,0.00019178,2]
[364984910,1749382243853,-380.369242,0.00019178,2]
[364984911,1749382243863,-480.0,0.00019178,2]
[364984912,1749382243873,-480.0,0.00019178,2]
[364984913,1749382243882,-1390.48,0.00019178,2]
[364984914,1749382243891,-579.88,0.00019178,2]
[364984915,1749382243900,-626.8,0.00019178,2]
[364984916,1749382244088,-1289.42,0.00019178,2]
[364984917,1749382244097,-713.11,0.00019178,2]
[364984918,1749382244106,-480.0,0.00019178,2]
[364984919,1749382244115,-480.0,0.00019178,2]
[364984920,1749382244125,-151.0,0.00019178,2]
[364984921,1749382244134,-480.0,0.00019178,2]
[364984922,1749382244143,-480.0,0.00019178,2]
[364984923,1749382244152,-480.0,0.00019178,2]
[364984924,1749382244161,-593.93,0.00019178,2]
[364984925,1749382244170,-1163.18,0.00019178,2]
[364984926,1749382244179,-354.26,0.00019178,2]
[364984927,1749382244189,-1163.18,0.00019178,2]
[364984928,1749382244198,-1163.18,0.00019178,2]
[364984929,1749382244207,-1163.18,0.00019178,2]
[364984930,1749382244216,-600.0,0.00019183,4]
[364984931,1749382244225,-500.0,0.00019194,2]
[364984932,1749382244234,-150.0,0.00019194,2]
[364984933,1749382244243,-500.0,0.00019194,2]
[364984934,1749382244252,-150.0,0.00019194,2]
[364984935,1749382244261,-500.0,0.00019194,2]
[364984936,1749382244271,-150.0,0.00019194,2]
[364984937,1749382244280,-231.31735458,0.00019194,2]
[364984938,1749382244293,-150.0,0.00019194,2]
[364984939,1749382244302,-150.0,0.00019194,2]
[364984940,1749382244311,-150.0,0.00019194,2]
[364984941,1749382244320,-380.369242,0.00019195,2]
[364984942,1749382244331,-380.369242,0.00019195,2]
[364984943,1749382244340,-500.0,0.00019195,2]
[364984944,1749382244349,-500.0,0.00019195,2]
[364984945,1749382244359,-500.0,0.00019195,2]
[364984946,1749382244368,-454.34453879,0.00019195,2]
[364984947,1749382244378,-900.0,0.000192,7]
[364984948,1749382244387,-151.4,0.00019203,2]
[364984949,1749382244396,-150.0,0.00019205,2]
[364984950,1749382244405,-150.0,0.00019205,2]
[364984951,1749382244414,-150.0,0.00019205,2]
[364984952,1749382244423,-150.0,0.00019205,2]
[364984953,1749382244432,-150.0,0.00019205,2]
[364984954,1749382244443,-150.0,0.00019205,2]
[364984955,1749382244454,-150.0,0.00019205,2]
[364984956,1749382244463,-150.0,0.00019205,2]
[364984957,1749382244474,-150.0,0.00019205,2]
[364984958,1749382244486,-150.90172218,0.00019205,2]
[364984959,1749382244496,-150.0,0.00019205,2]
[364984960,1749382244505,-150.0,0.00019205,2]
[364984961,1749382244517,-503.39189019,0.00019205,2]
[364984962,1749382244528,-150.0,0.00019205,2]
[364984963,1749382244538,-150.0,0.00019205,2]
[364984964,1749382244547,-201.16496896,0.00019205,2]
[364984965,1749382244557,-150.0,0.00019205,2]
[364984966,1749382244566,-150.0,0.00019219,2]
[364984967,1749382244575,-500.0,0.00019222,2]
[364984968,1749382244584,-203.35740725,0.00019222,2]
[364984969,1749382244593,-500.0,0.00019222,2]
[364984970,1749382244603,-203.6039194,0.00019222,2]
[364984971,1749382244612,-500.0,0.00019222,2]
[364984972,1749382244622,-178.7725347,0.00019222,2]
[364984973,1749382244631,-150.0,0.00019222,2]
[364984974,1749382244641,-210.41074398,0.00019222,2]
[364984975,1749382244650,-150.0,0.00019222,2]
[364984976,1749382244659,-500.0,0.00019223,2]
[364984977,1749382244668,-195.7415572,0.00019223,2]
[364984978,1749382244678,-500.0,0.00019223,2]
[364984979,1749382244688,-600.0,0.00019232,4]
[364984980,1749382244698,-150.0,0.00019233,2]
[364984981,1749382244707,-150.0,0.00019233,2]
[364984982,1749382244717,-150.0,0.00019233,2]
[364984983,1749382244727,-150.0,0.00019233,2]
[364984984,1749382244736,-150.0,0.00019233,2]
[364984985,1749382244746,-150.0,0.00019233,2]
[364984986,1749382244755,-150.0,0.00019233,2]
[364984987,1749382244764,-150.0,0.00019233,2]
[364984988,1749382244774,-150.0,0.00019233,2]
[364984989,1749382244783,-150.68287783,0.00019233,2]
[364984990,1749382244793,-151.0,0.00019233,2]
[364984991,1749382244802,-6628.8682,0.00019242,2]
[364984992,1749382244811,-5000.0,0.00019242,2]
[364984993,1749382244821,-2500.01428588,0.00019242,2]
[364984994,1749382244831,-154.64117639,0.00019242,2]
[364984995,1749382244841,-380.369242,0.00019242,2]
[364984996,1749382244850,-380.369242,0.00019242,2]
[364984997,1749382244861,-500.0,0.00019249,2]
[364984998,1749382244870,-500.0,0.0001925,2]
[364984999,1749382244879,-500.0,0.0001925,2]
[364985000,1749382244890,-150.0,0.0001926,2]
[364985001,1749382244902,-151.0,0.0001926,2]
[364985002,1749382244913,-150.0,0.0001926,2]
[364985003,1749382244924,-150.0,0.0001926,2]
[364985004,1749382244934,-150.0,0.0001926,2]
[364985005,1749382244944,-150.0,0.0001926,2]
[364985006,1749382244954,-150.0,0.0001926,2]
[364985007,1749382244964,-150.0,0.0001926,2]
[364985008,1749382244973,-150.0,0.0001926,2]
[364985009,1749382244982,-150.0,0.0001926,2]
[364985010,1749382244991,-150.0,0.0001926,2]
[364985011,1749382245000,-655.86634597,0.00019261,2]
[364985016,1749382246261,-300.0,0.00019177,2]
[364985017,1749382246271,-480.0,0.00019178,2]
[364985018,1749382246280,-151.0,0.0001926,2]
[364985019,1749382246292,-1026.97097693,0.00019261,2]
[364985026,1749382397668,500.0,0.00016164,2]
[364985028,1749382480764,268.82,0.00013699,2]
[364985033,1749382705099,589.62,0.00016219,2]
[364985034,1749382723007,150.0,0.00017051,2]
[364985035,1749382732535,28726.83305911,0.0001811,120]
[364985036,1749382759696,998276.4,0.000181,120]
[364985037,1749382759722,5000.0,0.000181,120]
[364985039,1749382851995,3500.0,0.00017,120]
[364985040,1749382852022,3500.0,0.00017,120]
[364985041,1749382852049,3500.0,0.00017,120]
[364985042,1749382852074,3500.0,0.00017,120]
[364985043,1749382852100,2000.0,0.00017,120]
[364985044,1749382852122,1000000.0,0.00017,120]
[364985045,1749382852148,33425.62348,0.00017,120]
[364985046,1749382883426,1901574.37652,0.000171,120]
[364985058,1749383432063,-275.49709086,0.000175,2]
[364985059,1749383432072,-172.63,0.00017851,2]
[364985060,1749383432082,-572.5228635,0.00017927,2]
[364985061,1749383432093,-427.4771365,0.00017927,2]
[364985062,1749383432102,-103.50696745,0.00017942,7]
[364985063,1749383432167,-46.49303255,0.00017942,7]
[364985064,1749383432176,-1327.09,0.00017964,2]
[364985065,1749383432186,-229.43,0.00018103,2]
[364985066,1749383432195,-673.48,0.0001824,2]
[364985067,1749383432204,-150.0,0.00018242,2]
[364985068,1749383432213,-37.6408143,0.00018321,2]
[364985069,1749383432273,-952.79788225,0.00018321,2]
[364985070,1749383432327,-93.09041442,0.00018321,2]
[364985071,1749383432336,-987.47459972,0.00018363,2]
[364985072,1749383432347,-212.52540028,0.00018363,2]
[364985073,1749383432356,-1957.856,0.00018364,2]
[364985074,1749383432366,-207.4,0.00018364,2]
[364985075,1749383432375,-300.0,0.00018374,2]
[364985076,1749383432384,-82.43231896,0.00018374,4]
[364985077,1749383437330,-517.56768104,0.00018374,4]
[364985078,1749383437344,-14892.01,0.00018375,2]
[364985079,1749383437356,-250.0,0.00018382,2]
[364985080,1749383437368,-476.88789024,0.00018419,2]
[364985081,1749383437380,-589.62,0.00018483,2]
[364985082,1749383437392,-600.0,0.00018575,4]
[364985083,1749383437404,-6029.80858905,0.000187,2]
[364985084,1749383437416,-155.0,0.00018843,2]
[364985085,1749383437427,-4493.38895649,0.00018843,2]
[364985086,1749383437443,-697.29720386,0.00018843,2]
[364985087,1749383437465,-1829.31383965,0.00018843,2]
[364985088,1749383437477,-468.60895435,0.00018878,2]
[364985103,1749383438027,-1868.94601842,0.00018878,2]
[364985104,1749383438186,-382.20000223,0.00018878,2]
[364985299,1749383440543,-522.721,0.00018843,2]
[364985301,1749383440553,-295.145025,0.00018878,2]
[364985303,1749383440564,-186.279249,0.000189,3]
[364985305,1749383440575,-2474.67618449,0.000189,2]
[364985307,1749383440585,-150.89541989,0.000189,2]
[364985309,1749383440596,-500.0,0.00018904,2]
[364985311,1749383440607,-164.28,0.00018925,2]
[364985313,1749383440618,-186.279249,0.00018939,5]
[364985315,1749383440628,-500.0,0.00018973,2]
[364985317,1749383440639,-327.15698921,0.00018974,2]
[364985319,1749383440650,-1755.71210716,0.00018987,2]
[364985567,1749383443215,-1259.18789284,0.00018987,2]
[364985569,1749383443226,-151.0,0.00018989,2]
[364985571,1749383443236,-500.0,0.00018989,2]
[364985573,1749383443246,-777.81484657,0.00018989,2]
[364985575,1749383443256,-151.0,0.00018989,2]
[364985577,1749383443267,-500.0,0.00018989,2]
[364985579,1749383443277,-151.0,0.00018989,2]
[364985581,1749383443288,-500.0,0.00018989,2]
[364985584,1749383443298,-500.0,0.00018989,2]
[364985586,1749383443308,-151.0,0.00018989,2]
[364985588,1749383443319,-500.0,0.00018989,2]
[364985590,1749383443330,-500.0,0.00018989,2]
[364985592,1749383443340,-197.54003563,0.00018999,2]
[364985594,1749383443351,-164.28935938,0.00018999,2]
[364985596,1749383443361,-206.55261091,0.00018999,2]
[364985598,1749383443373,-188.56855471,0.00018999,2]
[364985601,1749383443383,-188.7332817,0.00018999,2]
[364985603,1749383443394,-411.67699066,0.00019,2]
[364985696,1749383444279,151.0,0.00016876,2]
[364985883,1749383446139,-549.78268637,0.00018282,2]
[364985886,1749383446152,-941.06002663,0.00018282,2]
[364985888,1749383446162,-818.34277995,0.00019,2]
[364985919,1749383446459,-296.0,0.00018999,2]
[364985921,1749383446470,-818.25000294,0.00019,2]
[364985924,1749383446483,-357.724126,0.00019,2]
[364986297,1749383461191,151.0,0.00017033,2]
[364986299,1749383557627,649.11868413,0.00016164,2]
[364986301,1749383566082,264.37,0.00013699,2]
[364986303,1749383636569,151.0,0.00016916,2]
[364986304,1749383643559,-151.08969336,0.0001715,4]
[364986305,1749383659987,-205.0,0.000171,2]
[364986307,1749383711592,559.0,0.00015565,2]
[364986310,1749383756868,426.51997789,0.00017051,2]
[364986311,1749383757541,-795.0,0.000171,2]
[364986312,1749383757569,-448.91030664,0.0001715,4]
[364986313,1749383757597,-1000.0,0.000172,2]
[364986314,1749383757622,-1000.0,0.000173,2]
[364986315,1749383757648,-600.0,0.000173,4]
[364986316,1749383757676,-1000.0,0.000174,2]
[364986317,1749383757702,-1000.0,0.000175,2]
[364986318,1749383757727,-1000.0,0.000176,2]
[364986319,1749383757753,-150.0,0.00017669,2]
[364986320,1749383757779,-1000.0,0.000177,2]
[364986321,1749383757805,-1200.0,0.00017799,2]
[364986322,1749383757831,-1000.0,0.000178,2]
[364986323,1749383757856,-559.0,0.00017829,2]
[364986324,1749383757881,-1000.0,0.000179,2]
[364986325,1749383757907,-247.08969336,0.00018,2]
[364986335,1749384251770,205.0,0.00016617,2]
[364986338,1749384382749,2490.84038539,0.000135,5]
[364986339,1749384382772,3071.15961461,0.000135,5]
[364986340,1749384401374,211.0,0.00016617,2]
[364986341,1749384424579,484.4,0.00017051,2]
[364986343,1749384568073,150.0,0.00016966,20]
[364986347,1749384632575,-1000.0,0.00017733,2]
[364986349,1749384632585,-150.0,0.00017807,7]
[364986350,1749384632594,-332.05,0.00017815,2]
[364986351,1749384632605,-229.43,0.00017951,2]
[364986352,1749384632614,-752.91030664,0.00018,2]
[364986353,1749384632624,-671.79439782,0.000181,2]
[364986354,1749384632636,-328.20560218,0.000181,2]
[364986355,1749384632645,-200.0,0.000181,2]
[364986356,1749384632654,-538.919608,0.00018121,2]
[364986840,1749384638251,-661.080392,0.00018121,2]
[364986842,1749384638261,-1086.70151608,0.00018122,2]
[364986844,1749384638271,-332.23742556,0.000182,2]
[364987046,1749384640401,-667.76257444,0.000182,2]
[364987048,1749384640410,-163.2,0.000182,2]
[364987050,1749384640420,-874.53,0.000182,2]
[364987052,1749384640429,-796.63,0.000182,2]
[364987055,1749384640438,-796.63,0.000182,2]
[364987057,1749384640448,-990.58119072,0.00018258,2]
[364987069,1749384640563,-967.27480928,0.00018258,2]
[364987071,1749384640573,-207.4,0.00018258,2]
[364987073,1749384640582,-1000.0,0.000183,2]
[364987075,1749384640591,-466.32519072,0.00018313,2]
[364987083,1749384640665,-603.60931637,0.00018313,2]
[364987085,1749384640676,-1000.0,0.000184,2]
[364987087,1749384640685,-356.0,0.00018451,7]
[364987089,1749384640694,-1000.0,0.000185,2]
[364987091,1749384640702,-200.0,0.0001851,2]
[364987093,1749384640711,-1000.0,0.000186,2]
[364987095,1749384640720,-891.15056711,0.0001863,2]
[364987340,1749384643233,-855.69154277,0.0001863,2]
[364987364,1749384643442,-364.6648614,0.0001863,2]
[364987367,1749384643453,-487.64702872,0.0001863,2]
[364987369,1749384643463,-332.44306158,0.000187,2]
[364987378,1749384643547,-667.55693842,0.000187,2]
[364987380,1749384643560,-2584.2,0.000187,2]
[364987382,1749384643569,-1000.0,0.000188,2]
[364987384,1749384643578,-1000.0,0.000188,2]
[364987386,1749384643587,-600.0,0.0001881,4]
[364987388,1749384643597,-498.32655401,0.00018816,2]
[364987390,1749384643606,-173.205252,0.00018875,2]
[364987392,1749384643615,-2584.2,0.00018878,2]
[364987394,1749384643624,-677.03228937,0.00018881,2]
[364987647,1749384646271,-628.37,0.00018172,2]
[364987649,1749384646281,-327.78831237,0.00018881,2]
[364987651,1749384646290,-223.0,0.00018888,2]
[364987653,1749384646299,-153.27911238,0.00018889,2]
[364987655,1749384646309,-500.0,0.00018889,2]
[364987657,1749384646318,-500.0,0.00018889,2]
[364987659,1749384646327,-500.0,0.00018889,2]
[364987661,1749384646337,-366.34589371,0.00018889,2]
[364987663,1749384646348,-133.65410629,0.00018889,2]
[364987665,1749384646357,-500.0,0.00018889,2]
[364987667,1749384646366,-500.0,0.00018889,2]
[364987669,1749384646375,-500.0,0.00018889,2]
[364987671,1749384646384,-151.0,0.00018889,2]
[364987673,1749384646393,-334.2349561,0.000189,2]
[364989186,1749384668676,259.34,0.00013699,2]
[364989187,1749384672869,5103.65282863,0.0001707,120]
[364989188,1749384770753,-496.03266849,0.00024,120]
[364989189,1749384960561,-500.0,0.00025632,120]
[364989190,1749384967938,554.13,0.00016085,2]
[364989191,1749384973989,5269.97038539,0.00017,2]
[364989192,1749384974010,10000.0,0.00017,2]
[364989193,1749384974032,10000.0,0.00017,2]
[364989194,1749384974053,10000.0,0.00017,2]
[364989195,1749384974073,10000.0,0.00017,2]
[364989196,1749384974095,10000.0,0.00017,2]
[364989197,1749384974117,10000.0,0.00017,2]
[364989198,1749384974139,10000.0,0.00017,2]
[364989199,1749384974161,10000.0,0.00017,2]
[364989200,1749384974182,4574.80109218,0.00017,2]
[364989201,1749385175792,1011.27987612,0.00017,2]
[364989203,1749385620962,415.27580561,0.00015,14]
[364989205,1749385691643,204.0,0.00016561,2]
[364989209,1749385721156,3794.64322609,0.000151,2]
[364989210,1749385721183,985.30677391,0.000151,2]
[364989213,1749385741029,246.37,0.00013699,2]
[364989227,1749385831448,-300.0,0.00017703,2]
[364989228,1749385831458,-108.00415562,0.00017784,2]
[364989229,1749385831503,-417.74206616,0.00017784,2]
[364989230,1749385831563,-474.25377822,0.00017784,2]
[364989231,1749385831572,-166.7,0.00017844,2]
[364989232,1749385831582,-166.2,0.00017913,2]
[364989233,1749385831591,-214.04622178,0.0001794,4]
[364989234,1749385831603,-385.95377822,0.0001794,4]
[364989235,1749385831613,-39.59621728,0.00017967,7]
[364989236,1749385831624,-110.40378272,0.00017967,7]
[364989237,1749385831634,-180.61621703,0.00018242,2]
[364989238,1749385831645,-30.1088415,0.00018242,2]
[364989239,1749385831654,-168.0,0.00018339,2]
[364989240,1749385831663,-150.84,0.00018343,2]
[364989241,1749385831674,-554.13,0.00018349,2]
[364989242,1749385831683,-300.0,0.000184,2]
[364989243,1749385831693,-909.3,0.000184,2]
[364989244,1749385831702,-300.0,0.000184,2]
[364989245,1749385831711,-314.10770746,0.00018426,2]
[364989246,1749385831723,-885.89229254,0.00018426,2]